fUST/lending_fUST_20251022
["ID","MTS","AMOUNT","RATE_DAILY","PERIOD"]
[392057391,1761127837173,-151.0,0.00035336,30]
[392057392,1761127837182,-151.0,0.00035336,30]
[392057393,1761127837192,-151.0,0.00035336,30]
[392057394,1761127837201,-151.0,0.00035336,30]
[392057395,1761127837210,-200.0,0.00035336,7]
[392057396,1761127837220,-516.86246,0.00035336,30]
[392057397,1761127837229,-516.86246,0.00035336,30]
[392057398,1761127837239,-516.86246,0.00035336,30]
[392057399,1761127837248,-516.86246,0.00035336,30]
[392057400,1761127837257,-151.0,0.00035336,30]
[392057401,1761127837267,-151.0,0.00035336,30]
[392057402,1761127837277,-151.0,0.00035336,30]
[392057403,1761127837286,-211.709409,0.00035336,30]
[392057404,1761127837295,-151.0,0.00035336,30]
[392057405,1761127837305,-151.0,0.00035336,30]
[392057406,1761127837314,-151.0,0.00035336,30]
[392057407,1761127837322,-151.0,0.00035336,30]
[392057408,1761127837332,-151.0,0.00035336,30]
[392057409,1761127837340,-151.0,0.00035336,30]
[392057410,1761127837350,-151.0,0.00035336,7]
[392057411,1761127837358,-151.0,0.00035336,30]
[392057412,1761127837366,-207.760814,0.00035336,30]
[392057413,1761127837375,-151.0,0.00035336,30]
[392057414,1761127837384,-151.0,0.00035336,30]
[392057415,1761127837394,-151.0,0.00035336,30]
[392057416,1761127837403,-151.0,0.00035336,30]
[392057417,1761127837412,-151.0,0.00035336,30]
[392057418,1761127837421,-151.0,0.00035336,30]
[392057419,1761127837430,-151.0,0.00035336,30]
[392057420,1761127837439,-180.949707,0.00035336,30]
[392057421,1761127837448,-180.949707,0.00035336,30]
[392057422,1761127837458,-180.949707,0.00035336,30]
[392057423,1761127837470,-180.949707,0.00035336,30]
[392057424,1761127837481,-151.0,0.00035336,30]
[392057425,1761127837490,-151.0,0.00035336,30]
[392057426,1761127837499,-151.0,0.00035336,30]
[392057427,1761127837508,-151.0,0.00035336,30]
[392057428,1761127837518,-219.818052,0.00035336,30]
[392057429,1761127837529,-151.0,0.00035336,30]
[392057430,1761127837539,-151.0,0.00035336,30]
[392057431,1761127837549,-151.0,0.00035336,30]
[392057432,1761127837558,-151.0,0.00035336,30]
[392057433,1761127837569,-158.473464,0.00035336,30]
[392057434,1761127837579,-158.473464,0.00035336,30]
[392057435,1761127837590,-158.473464,0.00035336,30]
[392057437,1761127837599,-158.473464,0.00035336,30]
[392057439,1761127837608,-151.0,0.00035336,15]
[392057441,1761127837618,-151.0,0.00035336,30]
[392057444,1761127837627,-175.338691,0.00035336,30]
[392057445,1761127837636,-175.338691,0.00035336,30]
[392057446,1761127837645,-175.338691,0.00035336,30]
[392057447,1761127837654,-175.338691,0.00035336,30]
[392057448,1761127837663,-2459.062916,0.00035336,30]
[392057449,1761127837672,-2459.062916,0.00035336,30]
[392057450,1761127837758,-616.665923,0.00035336,30]
[392057452,1761127837768,-2459.062916,0.00035336,30]
[392057453,1761127837777,-616.665923,0.00035336,30]
[392057454,1761127837786,-2459.062916,0.00035336,30]
[392057455,1761127837795,-616.665923,0.00035336,30]
[392057456,1761127837805,-616.665923,0.00035336,30]
[392057457,1761127837814,-320.877813,0.00035336,30]
[392057458,1761127837824,-320.877813,0.00035336,30]
[392057460,1761127837833,-320.877813,0.00035336,30]
[392057462,1761127837843,-320.877813,0.00035336,30]
[392057464,1761127837852,-151.0,0.00035336,30]
[392057466,1761127837863,-151.0,0.00035336,30]
[392057468,1761127837873,-151.0,0.00035336,30]
[392057469,1761127837882,-151.0,0.00035336,30]
[392057470,1761127837891,-151.0,0.00035336,30]
[392057471,1761127837900,-151.0,0.00035336,30]
[392057472,1761127837910,-225.500313,0.00035336,30]
[392057473,1761127837919,-1500.0,0.00035368,5]
[392057475,1761127837929,-190.73131889,0.00035373,5]
[392057477,1761127837940,-191.76914439,0.00035373,5]
[392057479,1761127837950,-502.53411817,0.00035373,5]
[392057481,1761127837959,-500.0,0.00035373,5]
[392057483,1761127837968,-834.03,0.000354,14]
[392057485,1761127837977,-632.0,0.00035556,2]
[392057487,1761127837986,-983.0,0.00035556,2]
[392057489,1761127837995,-2164.0,0.00035556,2]
[392057491,1761127838005,-1000.0,0.000356,2]
[392057493,1761127838014,-1000.0,0.000356,2]
[392057495,1761127838025,-168.4789863,0.00035616,2]
[392057497,1761127838035,-1164.38865419,0.00035619,3]
[392057499,1761127838044,-2999.0,0.00035653,120]
[392057501,1761127838053,-1000.0,0.000359,2]
[392057503,1761127838063,-1000.0,0.000359,2]
[392057505,1761127838072,-1000.0,0.00035916,5]
[392057507,1761127838082,-542.87348369,0.00035953,2]
[392057509,1761127838092,-502.47095377,0.00035953,5]
[392057511,1761127838101,-500.0,0.00035953,5]
[392057513,1761127838110,-500.60907272,0.00035953,5]
[392057515,1761127838120,-600.0,0.00036033,30]
[392057517,1761127838129,-577.13,0.000362,2]
[392057519,1761127838139,-999.96,0.000362,2]
[392057520,1761127838148,-2999.0,0.00036338,120]
[392057522,1761127838158,-1000.0,0.00036501,5]
[392057523,1761127838168,-226.04276304,0.00036932,2]
[392057524,1761127838177,-220.19,0.00037,7]
[392057525,1761127838187,-2999.0,0.00037023,120]
[392057526,1761127838197,-401.45599235,0.00037049,5]
[392057527,1761127838207,-5000.0,0.00037068,30]
[392057528,1761127838216,-7414.98,0.000371,14]
[392057529,1761127838226,-975.37269034,0.00037103,2]
[392057530,1761127838236,-3493.16596257,0.00037434,3]
[392057531,1761127838246,-46090.05570711,0.00037444,7]
[392057532,1761127838548,-500.0,0.00028876,2]
[392057533,1761127838559,-500.0,0.00028876,2]
[392057534,1761127838569,-500.0,0.00028876,2]
[392057535,1761127838578,-500.0,0.00028876,2]
[392057536,1761127838588,-500.0,0.00028876,2]
[392057537,1761127838598,-156.65765639,0.00028876,2]
[392057538,1761127838613,-343.34234361,0.00028876,2]
[392057539,1761127838623,-500.0,0.00028876,2]
[392057540,1761127838632,-500.0,0.00028876,2]
[392057541,1761127838644,-500.0,0.00028876,2]
[392057542,1761127838653,-601.12536608,0.00028876,2]
[392057543,1761127838663,-611.35940601,0.00028876,2]
[392057544,1761127838674,-500.0,0.00028876,2]
[392057545,1761127838687,-500.0,0.00028876,2]
[392057546,1761127838700,-500.0,0.00028876,2]
[392057547,1761127838713,-500.0,0.00028876,2]
[392057548,1761127838727,-500.0,0.00028876,2]
[392057549,1761127838738,-500.0,0.00028876,2]
[392057550,1761127838749,-500.0,0.00028876,2]
[392057551,1761127838762,-500.0,0.00028876,2]
[392057552,1761127838774,-500.0,0.00028876,2]
[392057553,1761127838787,-500.0,0.00028876,2]
[392057554,1761127838799,-500.0,0.00028876,2]
[392057555,1761127838812,-500.0,0.00028876,2]
[392057556,1761127838825,-500.0,0.00028876,2]
[392057557,1761127838838,-500.0,0.00028876,2]
[392057558,1761127838850,-500.0,0.00028876,2]
[392057559,1761127838865,-500.0,0.00028876,2]
[392057560,1761127838879,-500.0,0.00028876,2]
[392057561,1761127838892,-500.0,0.00028876,2]
[392057562,1761127838906,-500.0,0.00028876,2]
[392057563,1761127838918,-500.0,0.00028876,2]
[392057564,1761127838929,-500.0,0.00028876,2]
[392057565,1761127838941,-151.0,0.00033594,30]
[392057566,1761127838952,-151.0,0.00033594,30]
[392057567,1761127838964,-151.0,0.00034226,30]
[392057568,1761127838976,-151.0,0.00034226,30]
[392057569,1761127838989,-151.0,0.00035305,30]
[392057570,1761127839002,-151.0,0.00035305,30]
[392057571,1761127839013,-151.0,0.00035336,30]
[392057572,1761127839026,-151.0,0.00035336,30]
[392057573,1761127839037,-57374.31359289,0.00037444,7]
[392057574,1761127839049,-151.0,0.00037444,120]
[392057575,1761127839061,-151.0,0.00037444,120]
[392057576,1761127839072,-151.0,0.00037444,120]
[392057577,1761127839084,-151.0,0.00037444,120]
[392057578,1761127839097,-151.0,0.00037444,120]
[392057579,1761127839109,-152.805463,0.00037444,120]
[392057580,1761127839123,-151.0,0.00037444,120]
[392057581,1761127839136,-151.0,0.00037444,120]
[392057582,1761127839148,-151.0,0.00037444,120]
[392057583,1761127839162,-151.0,0.00037444,120]
[392057584,1761127839175,-151.0,0.00037444,120]
[392057585,1761127839187,-151.0,0.00037444,120]
[392057586,1761127839200,-151.0,0.00037444,120]
[392057587,1761127839213,-287.085778,0.00037444,120]
[392057588,1761127839228,-151.0,0.00037444,120]
[392057589,1761127839241,-516.86246,0.00037444,120]
[392057590,1761127839255,-516.86246,0.00037444,120]
[392057591,1761127839266,-516.86246,0.00037444,120]
[392057592,1761127839276,-516.86247,0.00037444,120]
[392057593,1761127839288,-151.0,0.00037444,120]
[392057594,1761127839299,-151.0,0.00037444,120]
[392057595,1761127839313,-151.0,0.00037444,120]
[392057596,1761127839324,-151.0,0.00037444,120]
[392057597,1761127839336,-151.0,0.00037444,120]
[392057598,1761127839346,-212.610844,0.00037444,120]
[392057599,1761127839357,-151.0,0.00037444,120]
[392057600,1761127839368,-151.0,0.00037444,120]
[392057601,1761127839378,-151.0,0.00037444,120]
[392057602,1761127839391,-151.0,0.00037444,7]
[392057603,1761127839402,-151.0,0.00037444,120]
[392057604,1761127839413,-151.0,0.00037444,120]
[392057605,1761127839423,-151.0,0.00037444,120]
[392057606,1761127839433,-151.0,0.00037444,120]
[392057607,1761127839443,-282.663805,0.00037444,120]
[392057608,1761127839454,-151.0,0.00037444,120]
[392057609,1761127839464,-151.0,0.00037444,120]
[392057610,1761127839474,-180.949707,0.00037444,120]
[392057611,1761127839485,-180.949707,0.00037444,120]
[392057612,1761127839496,-180.949707,0.00037444,120]
[392057613,1761127839507,-180.949707,0.00037444,120]
[392057614,1761127839518,-151.0,0.00037444,120]
[392057615,1761127839529,-151.0,0.00037444,120]
[392057616,1761127839541,-151.0,0.00037444,120]
[392057617,1761127839551,-151.0,0.00037444,120]
[392057618,1761127839562,-151.0,0.00037444,120]
[392057619,1761127839572,-151.0,0.00037444,120]
[392057620,1761127839583,-151.0,0.00037444,120]
[392057621,1761127839594,-158.473464,0.00037444,120]
[392057622,1761127839605,-158.473464,0.00037444,120]
[392057624,1761127839616,-158.473464,0.00037444,120]
[392057625,1761127839626,-158.473462,0.00037444,120]
[392057626,1761127839636,-151.0,0.00037444,15]
[392057627,1761127839646,-175.338691,0.00037444,120]
[392057628,1761127839658,-175.338691,0.00037444,120]
[392057629,1761127839668,-175.338691,0.00037444,120]
[392057630,1761127839677,-175.338698,0.00037444,120]
[392057631,1761127839686,-2459.062916,0.00037444,120]
[392057632,1761127839695,-2459.062916,0.00037444,120]
[392057633,1761127839705,-616.665923,0.00037444,120]
[392057634,1761127839715,-2459.062916,0.00037444,120]
[392057636,1761127839724,-616.665923,0.00037444,120]
[392057638,1761127839733,-2459.06291659,0.00037444,120]
[392057639,1761127839743,-616.665923,0.00037444,120]
[392057640,1761127839753,-616.665917,0.00037444,120]
[392057641,1761127839762,-320.877813,0.00037444,120]
[392057643,1761127839772,-320.877813,0.00037444,120]
[392057644,1761127839781,-320.877813,0.00037444,120]
[392057646,1761127839791,-320.877822,0.00037444,120]
[392057648,1761127839800,-151.0,0.00037444,120]
[392057649,1761127839809,-151.0,0.00037444,120]
[392057650,1761127839819,-170.786952,0.00037444,120]
[392057651,1761127839828,-151.0,0.00037444,120]
[392057660,1761127839956,-151.0,0.00037444,120]
[392057662,1761127839968,-151.0,0.00037444,120]
[392057664,1761127839977,-150.0,0.00037559,2]
[392057666,1761127839986,-150.0,0.0003764,30]
[392057668,1761127839996,-247.1791045,0.00037652,2]
[392057670,1761127840005,-2999.0,0.00037708,120]
[392057672,1761127840014,-338.11431621,0.00037753,120]
[392057674,1761127840023,-616.2542518,0.00038,120]
[392057676,1761127840033,-762.0,0.000381,2]
[392057678,1761127840042,-2999.0,0.00038393,120]
[392057680,1761127840051,-632.0,0.00038556,2]
[392057682,1761127840061,-983.0,0.00038556,2]
[392057684,1761127840070,-2164.0,0.00038556,2]
[392057686,1761127840078,-500.0,0.00038738,5]
[392057688,1761127840088,-500.0,0.00038738,5]
[392057690,1761127840096,-150.21345069,0.00038885,5]
[392057692,1761127840105,-300.0,0.00038885,5]
[392057694,1761127840114,-266.77983211,0.00039048,2]
[392057696,1761127840123,-2999.0,0.00039078,120]
[392057698,1761127840132,-196.34218594,0.00039286,5]
[392057699,1761127840141,-158.97718662,0.00039288,30]
[392057700,1761127840151,-400.0,0.000393,120]
[392057702,1761127840160,-11764.06197138,0.00039344,2]
[392057703,1761127840169,-1164.38865419,0.00039434,3]
[392057704,1761127840178,-927754.8219,0.00039444,7]
[392057705,1761127840187,-151.0,0.00039444,120]
[392057706,1761127840196,-151.0,0.00039444,120]
[392057707,1761127840205,-151.0,0.00039444,120]
[392057708,1761127840215,-151.0,0.00039444,120]
[392057709,1761127840224,-151.0,0.00039444,120]
[392057710,1761127840233,-151.0,0.00039444,120]
[392057711,1761127840242,-155.515626,0.00039444,120]
[392057712,1761127840251,-151.0,0.00039444,120]
[392057713,1761127840260,-151.0,0.00039444,120]
[392057714,1761127840269,-242.549118,0.00039444,120]
[392057715,1761127840278,-151.0,0.00039444,120]
[392057716,1761127840288,-151.0,0.00039444,120]
[392057717,1761127840297,-151.0,0.00039444,120]
[392057718,1761127840306,-151.0,0.00039444,120]
[392057719,1761127840314,-151.0,0.00039444,120]
[392057720,1761127840323,-151.0,0.00039444,120]
[392057721,1761127840331,-151.0,0.00039444,120]
[392057722,1761127840340,-151.0,0.00039444,120]
[392057723,1761127840349,-151.0,0.00039444,120]
[392057724,1761127840358,-151.0,0.00039444,120]
[392057725,1761127840367,-151.0,0.00039444,120]
[392057726,1761127840377,-207.336995,0.00039444,120]
[392057727,1761127840386,-151.0,0.00039444,120]
[392057728,1761127840395,-151.0,0.00039444,120]
[392057729,1761127840404,-151.0,0.00039444,120]
[392057730,1761127840413,-180.949707,0.00039444,120]
[392057731,1761127840422,-180.949707,0.00039444,120]
[392057732,1761127840431,-180.949707,0.00039444,120]
[392057733,1761127840440,-180.949703,0.00039444,120]
[392057734,1761127840452,-1000.0,0.00039495,8]
[392057735,1761127840463,-220.19,0.000395,7]
[392057736,1761127840473,-720.0,0.00039636,90]
[392057737,1761127840483,-226.04276304,0.00039651,2]
[392057738,1761127840492,-418.3229,0.00039654,2]
[392057739,1761127840501,-158.97718662,0.00039699,30]
[392057740,1761127840510,-2999.0,0.00039763,120]
[392057741,1761127840519,-500.0,0.0004,2]
[392057742,1761127840528,-834.03,0.0004,14]
[392057743,1761127840538,-403.14601822,0.0004,120]
[392057744,1761127840549,-500.0,0.0004,7]
[392057745,1761127840562,-158.97718662,0.0004011,30]
[392057746,1761127840574,-153.0,0.00040149,30]
[392057747,1761127840587,-2999.0,0.00040448,120]
[392057748,1761127840599,-233.63436279,0.000405,120]
[392057749,1761127840618,-857.1278832,0.000405,120]
[392057750,1761127840632,-253.71754423,0.000405,120]
[392057751,1761127840642,-189.96940269,0.000405,120]
[392057752,1761127840656,-187.10934598,0.000405,120]
[392057753,1761127840671,-176.88359495,0.000405,120]
[392057754,1761127840682,-339.77156066,0.000405,120]
[392057755,1761127840695,-164.53979293,0.000405,120]
[392057756,1761127840706,-171.91579904,0.000405,120]
[392057757,1761127840718,-165.99985449,0.000405,120]
[392057758,1761127840730,-195.16799222,0.000405,120]
[392057759,1761127840745,-7414.98,0.000405,14]
[392057760,1761127840759,-158.97718662,0.00040548,30]
[392057761,1761127840770,-158.97718662,0.00040959,30]
[392057762,1761127840783,-150.0,0.00040973,2]
[392057763,1761127840796,-150.0,0.00041062,30]
[392057764,1761127840806,-50000.0,0.00041096,120]
[392057765,1761127840815,-2999.0,0.00041133,120]
[392057766,1761127840824,-158.97718662,0.0004137,30]
[392057767,1761127840833,-483913.25790713,0.00041444,7]
[392057867,1761128881294,5296.56361053,0.00035369,30]
[392057869,1761128897408,6292.66115609,0.00035369,30]
[392057871,1761128911247,41544.33633308,0.00035369,30]
[392057872,1761128913191,560.81270055,0.00018,5]
[392057873,1761128913315,19314.29535328,0.00035369,30]
[392057874,1761128915409,18318.71163295,0.00035369,30]
[392057875,1761128916833,255547.12053723,0.00035369,30]
[392057915,1761129032278,-300.0,0.00024999,2]
[392057917,1761129032288,-569.964464,0.00024999,2]
[392057923,1761129032335,-630.035536,0.00024999,2]
[392057925,1761129032347,-3968.91293617,0.00025,2]
[392057927,1761129032358,-1608.22083128,0.00025,2]
[392057929,1761129032369,-208.97060952,0.00025,2]
[392057931,1761129032379,-10364.0,0.00025,2]
[392057932,1761129032389,-600.0,0.00025,2]
[392057933,1761129032399,-9940.34510654,0.00025,2]
[392057934,1761129032410,-150.0,0.00025103,2]
[392057935,1761129032419,-525.26777475,0.00026,2]
[392057936,1761129032430,-6380.36581916,0.00026,2]
[392057937,1761129032441,-177.0,0.00026103,2]
[392057938,1761129032451,-420.0,0.00027082,2]
[392057939,1761129032463,-204.0,0.00027103,2]
[392057940,1761129032473,-1680.0,0.00027205,2]
[392057941,1761129032483,-227.30362428,0.00027321,2]
[392057942,1761129032494,-231.0,0.00028103,2]
[392057943,1761129032506,-258.0,0.00029103,2]
[392057944,1761129032516,-587.0,0.00029339,2]
[392057945,1761129032526,-401.457579,0.00029525,2]
[392057946,1761129032536,-508.0,0.00029605,2]
[392057947,1761129032547,-500.0,0.0003,3]
[392057948,1761129032558,-285.0,0.00030103,2]
[392057949,1761129032568,-160.0,0.0003085,2]
[392057950,1761129032578,-314.0,0.00030997,2]
[392057951,1761129032588,-1001.92,0.00031,2]
[392057952,1761129032599,-312.0,0.00031103,2]
[392057953,1761129032610,-1001.92,0.00031174,2]
[392057954,1761129032628,-260.0,0.00031398,2]
[392057955,1761129032639,-823.0,0.00031784,2]
[392057956,1761129032656,-360.0,0.00031946,2]
[392057957,1761129032667,-339.0,0.00032103,2]
[392057958,1761129032679,-300.0,0.00032434,30]
[392057959,1761129032822,-300.0,0.00032434,30]
[392057960,1761129032834,-460.0,0.00032494,2]
[392057961,1761129032844,-155.27,0.00032596,15]
[392057962,1761129032855,-155.27,0.00032696,15]
[392057963,1761129032864,-155.27,0.00032796,15]
[392057964,1761129032874,-500.0,0.00032836,5]
[392057965,1761129032883,-500.0,0.00032836,5]
[392057966,1761129032894,-158.51248006,0.00032836,5]
[392057967,1761129032904,-500.0,0.00032836,5]
[392057968,1761129032914,-169.05335524,0.00032836,5]
[392057969,1761129032927,-330.94664476,0.00032836,5]
[392057970,1761129032936,-500.0,0.00032836,5]
[392057971,1761129032946,-500.0,0.00032836,5]
[392057972,1761129032955,-503.5598967,0.00032836,5]
[392057973,1761129032964,-501.23282432,0.00032836,5]
[392057974,1761129032973,-500.0,0.00032836,5]
[392057975,1761129032983,-507.79914718,0.00032836,5]
[392057976,1761129032993,-500.0,0.00032836,5]
[392057977,1761129033003,-500.0,0.00032836,5]
[392057978,1761129033012,-500.0,0.00032836,5]
[392057979,1761129033022,-500.0,0.00032877,5]
[392057980,1761129033031,-155.27,0.00032896,60]
[392057981,1761129033040,-155.27,0.00032996,60]
[392057982,1761129033050,-1593.09739046,0.00033,2]
[392057983,1761129033060,-138364.62549272,0.00033,5]
[392057984,1761129033069,-196.22648184,0.00033,120]
[392057985,1761129033079,-560.0,0.00033042,2]
[392057986,1761129033088,-155.27,0.00033096,60]
[392057987,1761129033098,-366.0,0.00033103,120]
[392057988,1761129033108,-500.0,0.0003311,5]
[392057989,1761129033117,-500.0,0.00033141,7]
[392057990,1761129033127,-500.0,0.00033151,5]
[392057991,1761129033137,-3982.48872358,0.0003327,2]
[392057992,1761129033147,-183.965,0.00033358,2]
[392057993,1761129033157,-500.0,0.00033384,5]
[392057994,1761129033166,-1000.0,0.00033384,5]
[392057995,1761129033176,-1000.0,0.00033384,5]
[392057996,1761129033185,-1003.4245926,0.00033384,5]
[392057997,1761129033195,-1001.92550144,0.00033384,5]
[392057998,1761129033204,-500.0,0.00033384,5]
[392057999,1761129033213,-250.0,0.00033418,2]
[392058000,1761129033223,-660.0,0.0003359,2]
[392058001,1761129033232,-500.0,0.00033658,5]
[392058002,1761129033241,-6535.46,0.000337,14]
[392058003,1761129033250,-548.81049135,0.00033932,5]
[392058004,1761129033260,-5059.0924761,0.0003398,2]
[392058005,1761129033274,-73858.07425933,0.0003399,2]
[392058006,1761129033283,-625.33567772,0.0003399,60]
[392058007,1761129033292,-422060.62456618,0.00033998,2]
[392058008,1761129033301,-646.6078152,0.00034,7]
[392058009,1761129033311,-8112.52134326,0.00034,30]
[392058010,1761129033320,-2187.97,0.00034,14]
[392058011,1761129033329,-722.0,0.00034083,120]
[392058012,1761129033340,-393.0,0.00034103,120]
[392058013,1761129033349,-760.0,0.00034138,2]
[392058014,1761129033359,-720.0,0.00034233,7]
[392058015,1761129033368,-722.0,0.0003425,7]
[392058016,1761129033379,-369.61349454,0.00034493,2]
[392058017,1761129033389,-720.0,0.0003457,7]
[392058018,1761129033398,-500.0,0.00034591,7]
[392058019,1761129033409,-500.0,0.00034592,2]
[392058020,1761129033418,-500.0,0.00034592,7]
[392058021,1761129033428,-500.0,0.00034592,7]
[392058022,1761129033437,-500.0,0.00034592,2]
[392058023,1761129033447,-500.0,0.00034592,7]
[392058024,1761129033456,-500.0,0.00034592,7]
[392058025,1761129033466,-361.1359406,0.00034592,7]
[392058026,1761129033475,-500.0,0.00034592,7]
[392058027,1761129033484,-542.5645498,0.00034592,2]
[392058028,1761129033494,-500.0,0.00034592,7]
[392058029,1761129033504,-500.0,0.00034592,7]
[392058030,1761129033514,-500.0,0.00034592,7]
[392058031,1761129033524,-465.22451789,0.00034592,7]
[392058032,1761129033533,-500.0,0.00034592,7]
[392058033,1761129033542,-500.0,0.00034592,7]
[392058034,1761129033552,-151.26671873,0.00034592,2]
[392058035,1761129033561,-500.0,0.00034592,7]
[392058036,1761129033571,-539.18051517,0.00034593,2]
[392058037,1761129033580,-970.52492731,0.00034593,2]
[392058038,1761129033590,-1725.37764855,0.00034593,2]
[392058039,1761129033599,-2695.90257587,0.00034593,2]
[392058040,1761129033608,-3882.09970925,0.00034593,2]
[392058041,1761129033618,-5283.9690487,0.00034593,2]
[392058042,1761129033628,-591.0462822,0.00034593,2]
[392058043,1761129033637,-1063.88330797,0.00034593,2]
[392058044,1761129033647,-1891.34810305,0.00034593,2]
[392058045,1761129033656,-2955.23141101,0.00034593,2]
[392058046,1761129033665,-151.0,0.00034636,2]
[392058047,1761129033674,-151.0,0.00034636,2]
[392058048,1761129033684,-151.0,0.00034636,2]
[392058049,1761129033693,-151.0,0.00034636,2]
[392058050,1761129033702,-173.76104002,0.00034636,2]
[392058051,1761129033711,-802.63163458,0.00034686,2]
[392058052,1761129033720,-720.0,0.0003469,2]
[392058053,1761129033729,-720.0,0.00034782,2]
[392058054,1761129033739,-722.0,0.0003483,7]
[392058055,1761129033748,-10681.25882885,0.00035,2]
[392058056,1761129033757,-655.79058603,0.00035,2]
[392058057,1761129033767,-4029.59614893,0.00035,2]
[392058058,1761129033778,-601.06903676,0.00035,120]
[392058059,1761129033788,-162.18559458,0.00035,5]
[392058060,1761129033798,-420.0,0.00035103,120]
[392058061,1761129033809,-722.0,0.0003512,2]
[392058062,1761129033818,-500.0,0.00035165,5]
[392058063,1761129033827,-205.59835951,0.00035217,5]
[392058064,1761129033836,-722.0,0.0003525,2]
[392058065,1761129033846,-855.6,0.000353,30]
[392058066,1761129033856,-500.0,0.00035335,7]
[392058067,1761129033866,-10000.0,0.00035336,30]
[392058068,1761129033876,-500.0,0.00035337,5]
[392058069,1761129033885,-502.13905817,0.00035337,5]
[392058070,1761129033895,-500.0,0.00035337,5]
[392058071,1761129033904,-354.29241081,0.00035368,7]
[392058072,1761129033914,-2999.0,0.00035368,120]
[392058073,1761129033923,-442.7532312,0.00035369,30]
[392058074,1761129033935,-159153.75339238,0.00035369,7]
[392058111,1761129038197,-413.99348309,0.00035359,10]
[392058114,1761129038209,-544.67651691,0.00035359,10]
[392058116,1761129038218,-726.47034098,0.00035369,7]
[392058118,1761129038229,-76146.51801663,0.00035369,7]
[392058120,1761129038240,-478.2606402,0.00035369,2]
[392058122,1761129038249,-300.0,0.00035369,2]
[392058124,1761129038259,-3893.35610389,0.00035369,2]
[392058126,1761129038272,-812.30906212,0.00035369,2]
[392058128,1761129038282,-259.03220094,0.00035369,2]
[392058130,1761129038290,-297.83317649,0.00035369,2]
[392058132,1761129038299,-328.06111258,0.00035369,2]
[392058134,1761129038310,-292.78671473,0.00035369,2]
[392058136,1761129038320,-639.29515758,0.00035369,2]
[392058138,1761129038329,-1366.23016879,0.00035369,2]
[392058140,1761129038340,-157.12468438,0.00035369,2]
[392058143,1761129038349,-421.28738385,0.00035369,2]
[392058145,1761129038359,-6312.9906692,0.00035369,2]
[392058146,1761129038368,-158.12722418,0.00035369,2]
[392058149,1761129038378,-1500.0,0.00035369,3]
[392058151,1761129038388,-189.77526796,0.00035369,2]
[392058153,1761129038397,-1401.4031282,0.00035369,2]
[392058154,1761129038407,-5914.51626638,0.00035369,2]
[392058156,1761129038416,-10715.17201416,0.00035369,2]
[392058159,1761129038426,-653.27726544,0.00035369,2]
[392058161,1761129038435,-203.62095684,0.00035369,2]
[392058163,1761129038445,-2920.0,0.00035369,2]
[392058165,1761129038455,-152.80105128,0.00035369,2]
[392058167,1761129038464,-386.08222907,0.00035369,2]
[392058169,1761129038474,-1447.29361936,0.00035369,2]
[392058171,1761129038484,-201.99254913,0.00035369,2]
[392058173,1761129038493,-3157.04970327,0.00035369,2]
[392058175,1761129038503,-365.8015181,0.00035369,2]
[392058177,1761129038512,-167.10471137,0.00035369,2]
[392058178,1761129038523,-150.82302467,0.00035369,2]
[392058179,1761129038532,-259.36583629,0.00035369,2]